bitfinex/quotes_ETHUSD_20251217
["timestamp","ask_amount","ask_price","bid_price","bid_amount"]
[1765982704804,7.28831358,2935.3,2934.5,0.554]
[1765982705003,0.1962,2936.1,2935.2,5.9125303]
[1765982705214,0.4747,2936.3,2935.3,0.553]
[1765982705400,0.43079684,2936.3,2935.8,5.9125303]
[1765982705602,0.43079684,2936.3,2935.2,5.9125303]
[1765982705832,0.4747,2936.2,2935.0,0.553]
[1765982706114,0.46438023,2936.0,2935.2,0.03411281]
[1765982706314,6.81175708,2936.1,2935.3,5.9125303]
[1765982706532,0.1844,2935.9,2935.2,0.03411281]
[1765982706683,0.1844,2935.9,2935.1,0.553]
[1765982707001,0.4747,2935.8,2934.6,5.94664311]
[1765982707405,0.4747,2935.8,2934.3,0.03411281]
[1765982707592,0.4747,2935.2,2933.8,5.94664311]
[1765982707800,0.1844,2934.9,2933.8,0.553]
[1765982708030,0.1844,2934.9,2933.5,5.94664311]
[1765982708031,0.46438023,2934.4,2933.5,5.94664311]
[1765982708320,0.46438023,2934.4,2933.0,3.44350323]
[1765982708321,0.4747,2934.3,2933.3,0.553]
[1765982708520,0.4747,2934.3,2933.4,5.9125303]
[1765982708724,0.4747,2934.3,2933.1,5.9125303]
[1765982709014,0.46438023,2934.4,2933.0,5.94664311]
[1765982709015,0.472,2933.8,2933.0,5.94664311]
[1765982709316,0.472,2934.2,2933.3,5.9125303]
[1765982709517,0.1819,2934.3,2933.6,5.9125303]
[1765982709810,0.1819,2934.3,2933.6,5.94664311]
[1765982710012,0.1819,2934.3,2933.6,0.03411281]
[1765982710313,6.81616794,2934.2,2933.4,0.03411281]
[1765982710489,1.55218839,2934.1,2933.4,0.03411281]
[1765982710697,1.55218839,2934.1,2933.6,0.03411281]
[1765982711123,6.81616794,2934.2,2933.6,5.94664311]
[1765982711623,6.81616794,2934.2,2933.0,0.37371281]
[1765982711624,0.472,2934.0,2933.0,5.94664311]
[1765982712101,0.472,2933.5,2932.6,0.03411281]
[1765982712305,0.4712,2933.5,2932.6,0.03411281]
[1765982712501,0.4712,2933.5,2932.6,5.94664311]
[1765982712836,0.4712,2933.5,2932.4,0.58711281]
[1765982713047,0.4712,2933.5,2932.4,0.553]
[1765982713206,0.46438023,2933.1,2931.6,5.94664311]
[1765982713527,0.1819,2932.9,2932.2,5.94664311]
[1765982714029,0.1819,2933.3,2932.6,0.03411281]
[1765982714357,10.22773761,2933.2,2932.2,5.94664311]
[1765982714530,0.472,2933.0,2932.1,0.1695]
[1765982714737,0.472,2932.9,2932.0,0.58711281]
[1765982715105,0.472,2932.9,2932.0,0.03411281]
[1765982715314,0.472,2932.9,2931.6,6.49964311]
[1765982715509,0.472,2932.9,2932.0,0.03411281]
[1765982715852,0.472,2932.9,2931.6,6.49964311]
[1765982716002,0.472,2932.9,2931.0,0.3404]
[1765982716003,0.472,2932.3,2931.0,9.32426772]
[1765982716331,0.9024856,2932.8,2931.0,9.32426772]
[1765982716332,0.9024856,2933.0,2932.1,0.002]
[1765982716529,7.84418918,2932.9,2932.1,0.002]
[1765982716731,1.25641892,2932.8,2932.1,0.002]
[1765982717041,0.472,2932.7,2932.1,0.002]
[1765982717448,0.472,2932.6,2932.1,0.002]
[1765982717757,0.472,2932.6,2931.0,0.002]
[1765982717758,14.801467,2932.1,2931.0,0.002]
[1765982717898,0.472,2931.8,2931.0,0.002]
[1765982718099,0.472,2931.6,2931.0,0.002]
[1765982718297,0.472,2931.5,2931.0,0.002]
[1765982718929,0.472,2931.2,2931.0,0.002]
[1765982719236,0.472,2931.1,2931.0,0.002]
[1765982719401,0.66474856,2931.1,2931.0,0.002]
[1765982719601,11.48430811,2931.1,2931.0,0.002]
[1765982719820,1.37705711,2931.1,2931.0,0.002]
[1765982720020,9.65598411,2931.1,2931.0,0.002]
[1765982720222,13.06767255,2931.1,2931.0,0.002]
[1765982720730,14.23822438,2931.1,2931.0,0.002]
[1765982720929,0.6539,2930.9,2929.8,5.9145303]
[1765982721232,0.472,2930.6,2929.8,0.93820385]
[1765982721399,0.472,2930.6,2929.8,0.002]
[1765982722035,0.472,2930.5,2929.8,0.002]
[1765982722231,4.531366,2929.9,2929.8,0.002]
[1765982722626,5.24390481,2929.9,2929.8,0.002]
[1765982722825,4.531366,2929.9,2929.8,0.002]
[1765982723023,5.38109954,2929.9,2929.8,0.002]
[1765982723223,11.21670302,2929.9,2929.8,0.002]
[1765982723537,5.79682048,2929.9,2929.8,0.002]
[1765982723749,4.531366,2929.9,2929.8,0.002]
[1765982723943,0.46438023,2929.9,2929.8,0.002]
[1765982724111,3.877466,2929.9,2929.8,0.002]
[1765982724307,3.41273633,2930.2,2929.8,0.002]
[1765982724621,0.46438023,2930.1,2929.8,0.002]
[1765982724815,0.6539,2929.9,2929.8,0.002]
[1765982726022,31.11828023,2929.9,2929.8,0.002]
[1765982726349,4.34981551,2929.6,2929.5,0.002]
[1765982726951,9.11836909,2929.6,2929.5,0.002]
[1765982727121,5.61372109,2929.6,2929.5,0.002]
[1765982727316,23.47678883,2929.6,2929.5,0.002]
[1765982727642,13.73026383,2929.6,2929.5,0.002]
[1765982727840,4.90281551,2929.6,2929.5,0.002]
[1765982728042,20.47138078,2929.6,2929.5,0.002]
[1765982728341,20.47064107,2929.6,2929.5,0.002]
[1765982729042,8.23797829,2929.6,2929.5,0.002]
[1765982729248,7.52846151,2929.6,2929.5,0.002]
[1765982729418,30.0,2929.3,2928.8,0.002]
[1765982729618,0.472,2928.4,2928.1,0.002]
[1765982729948,0.472,2928.4,2927.3,0.002]
[1765982729949,0.46438023,2928.1,2927.4,5.9145303]
[1765982730323,8.91404113,2928.1,2927.4,0.002]
[1765982730645,10.14695214,2928.1,2927.4,0.002]
[1765982732015,35.58447514,2928.1,2927.4,0.002]
[1765982732248,0.6539,2927.7,2927.4,0.002]
[1765982732548,0.472,2927.5,2926.9,0.002]
[1765982732750,0.554,2927.4,2926.9,0.002]
[1765982732915,0.554,2927.3,2926.9,0.002]
[1765982733463,0.1819,2925.0,2923.8,3.42019814]
[1765982733670,0.472,2924.8,2922.3,3.60382754]
[1765982733953,9.740218,2924.9,2922.7,5.9125303]
[1765982733954,0.472,2924.5,2922.7,5.9125303]
[1765982734121,0.472,2924.3,2922.4,7.66887285]
[1765982734315,3.41985568,2924.1,2923.0,5.9125303]
[1765982734562,0.4599,2923.8,2923.0,3.42114266]
[1765982734765,0.1847,2923.9,2922.5,0.4534]
[1765982735053,0.4599,2923.6,2922.5,0.03411281]
[1765982735262,0.4599,2923.2,2921.2,0.4534]
[1765982735558,0.4599,2923.1,2921.2,0.4534]
[1765982735764,0.4599,2922.8,2921.7,3.42266061]
[1765982735913,0.4599,2922.8,2921.1,3.42331241]
[1765982735914,0.6446,2921.4,2920.9,0.03411281]
[1765982736117,1.1998,2921.4,2920.9,0.03411281]
[1765982736347,4.62281636,2921.4,2920.9,0.03411281]
[1765982736554,0.64828023,2921.4,2920.4,3.42412955]
[1765982736723,0.4599,2921.2,2920.2,3.42442005]
[1765982736921,0.4599,2921.2,2920.3,3.42430572]
[1765982737138,0.1847,2919.9,2919.5,0.99261931]
[1765982737338,0.1847,2919.9,2919.5,9.57735191]
[1765982737526,0.4599,2920.4,2919.5,7.8430216]
[1765982737731,0.4599,2920.4,2919.5,0.99261931]
[1765982737935,0.1847,2920.5,2919.5,0.99261931]
[1765982737936,0.1847,2920.5,2919.6,0.46438023]
[1765982738143,0.6438,2921.4,2920.4,0.49849304]
[1765982738324,5.15957435,2922.6,2921.2,6.84650142]
[1765982738325,0.4599,2922.6,2921.2,6.84650142]
[1765982738527,0.4599,2922.6,2920.8,3.88806078]
[1765982738528,0.1847,2921.1,2921.0,5.15957435]
[1765982738725,0.1847,2921.1,2919.5,4.41786335]
[1765982738726,0.1847,2919.9,2919.5,0.99261931]
[1765982738965,0.1307,2919.2,2919.1,0.002]
[1765982739146,30.0,2918.9,2917.5,0.1141938]
[1765982739376,5.15957435,2918.0,2917.5,0.1141938]
[1765982739660,18.62848023,2917.6,2917.5,0.1141938]
[1765982739857,0.6446,2917.0,2915.5,5.15957435]
[1765982740059,0.4599,2916.7,2913.5,6.86459584]
[1765982740259,0.1221,2915.8,2913.5,6.86459584]
[1765982740424,0.1221,2915.8,2913.4,0.1985]
[1765982740425,0.4599,2915.5,2914.0,3.43170899]
[1765982740641,0.4599,2915.5,2914.3,5.15957435]
[1765982740845,0.4599,2915.3,2914.0,3.43170899]
[1765982741053,0.4599,2915.3,2914.2,5.15957435]
[1765982741375,0.6446,2914.5,2913.9,3.43182261]
[1765982741674,0.4599,2915.2,2914.3,5.15957435]
[1765982741975,0.4599,2915.2,2913.9,3.43182261]
[1765982742278,1.03038023,2915.6,2913.5,3.43222555]
[1765982742460,0.4599,2914.6,2913.7,5.15957435]
[1765982742776,0.1847,2915.1,2913.8,0.46438023]
[1765982742950,0.4599,2915.0,2914.1,5.15957435]
[1765982743150,0.4599,2915.0,2913.5,0.1985]
[1765982743380,0.4599,2915.0,2913.6,0.0343218]
[1765982743541,0.4599,2915.0,2913.9,5.15957435]
[1765982743741,0.4599,2915.0,2914.0,0.46438023]
[1765982744041,0.4599,2915.0,2913.6,0.567]
[1765982744241,0.4599,2915.0,2914.3,5.15957435]
[1765982744488,0.4599,2916.2,2914.8,0.46438023]
[1765982744772,0.4599,2916.2,2915.2,0.46438023]
[1765982745206,0.1847,2917.3,2915.7,0.4534]
[1765982745482,0.4599,2918.0,2917.2,5.15957435]
[1765982745776,0.4599,2917.5,2916.2,0.46438023]
[1765982745980,0.03411281,2917.8,2916.2,0.46438023]
[1765982746179,0.03411281,2917.8,2916.0,0.1985]
[1765982746180,0.03411281,2917.8,2916.9,5.15957435]
[1765982746354,0.03411281,2917.8,2917.3,5.15957435]
[1765982746685,0.03411281,2917.8,2917.4,0.46438023]
[1765982746846,0.03411281,2917.8,2917.7,6.27585458]
[1765982747052,0.1847,2919.8,2917.7,6.27585458]
[1765982747053,0.1847,2919.8,2917.9,0.4534]
[1765982747282,0.1847,2919.8,2919.1,5.15957435]
[1765982747444,0.6446,2919.8,2919.1,5.15957435]
[1765982747643,0.6446,2919.8,2918.6,5.15957435]
[1765982747644,4.06949211,2919.8,2918.6,5.15957435]
[1765982747967,3.60818289,2921.1,2919.1,5.15957435]
[1765982747968,0.4599,2920.6,2919.1,5.15957435]
[1765982748284,0.4599,2920.4,2919.5,5.15957435]
[1765982748486,3.42371952,2920.8,2919.9,5.15957435]
[1765982748645,0.4599,2920.9,2919.6,5.15957435]
[1765982748646,7.30716678,2920.9,2919.6,5.15957435]
[1765982748845,10.27090017,2920.9,2919.3,0.4534]
[1765982749082,1.02709002,2920.8,2920.0,5.15957435]
[1765982749282,3.42350116,2921.0,2920.0,5.72757435]
[1765982749587,7.03144176,2921.1,2920.0,0.568]
[1765982750285,7.03144176,2921.1,2919.0,0.02056379]
[1765982750286,11.523961,2920.8,2919.0,0.02056379]
[1765982750454,11.523961,2920.8,2917.7,0.88288546]
[1765982750455,0.4599,2919.6,2918.2,0.003]
[1765982750781,10.56244123,2918.3,2918.2,0.003]
[1765982751093,6.78289423,2918.3,2918.2,0.003]
[1765982751273,5.97976523,2918.3,2916.2,0.1654]
[1765982751590,5.97976523,2918.3,2914.2,1.03022154]
[1765982751591,0.46438023,2917.6,2916.4,5.15957435]
[1765982751776,3.733399,2917.5,2916.4,5.15957435]
[1765982751951,1.0299,2917.6,2916.4,5.15957435]
[1765982752156,1.0299,2917.6,2916.3,5.15957435]
[1765982752353,1.0299,2917.6,2916.3,5.67553179]
[1765982752597,6.85518422,2917.5,2916.1,0.1985]
[1765982752890,6.85518422,2917.5,2916.1,0.57]
[1765982752891,0.4599,2917.3,2916.1,0.57]
[1765982753055,0.64608023,2917.4,2915.1,5.72957435]
[1765982753056,0.4599,2916.9,2915.1,5.72957435]
[1765982753254,1.0299,2916.8,2915.5,5.15957435]
[1765982753451,0.4599,2916.5,2915.2,0.46438023]
[1765982753753,0.4599,2916.5,2915.5,5.15957435]
[1765982753953,0.4599,2916.5,2915.5,5.18013814]
[1765982754177,0.4599,2916.5,2915.5,8.61005382]
[1765982754491,0.4599,2916.2,2914.6,0.2005]
[1765982754703,0.46438023,2916.3,2914.9,3.43063082]
[1765982754704,0.4599,2916.1,2914.9,3.43063082]
[1765982754989,0.4599,2916.1,2915.2,0.002]
[1765982755196,0.55678023,2915.9,2915.2,0.002]
[1765982755392,0.5523,2915.9,2915.2,0.002]
[1765982755703,0.46438023,2916.3,2915.2,0.34525308]
[1765982755865,0.4599,2916.2,2915.2,0.002]
[1765982756655,0.4599,2915.8,2915.2,0.002]
[1765982758055,0.57,2915.9,2915.2,0.002]
[1765982758254,0.1847,2916.1,2915.2,0.002]
[1765982758557,6.85871056,2916.0,2915.2,0.002]
[1765982758748,0.6446,2916.1,2915.2,0.002]
[1765982758954,0.569,2916.4,2915.2,0.002]
[1765982758955,0.569,2916.4,2915.4,6.22159626]
[1765982759276,7.31719476,2916.7,2915.5,0.569]
[1765982759592,0.4599,2916.5,2915.2,0.002]
[1765982760391,3.4278271,2917.3,2915.7,6.22159626]
[1765982760570,3.4278271,2917.3,2915.2,0.002]
[1765982760571,3.44673986,2918.8,2916.9,6.22159626]
[1765982760766,0.07056379,2919.0,2917.1,0.02056379]
[1765982760767,0.05,2919.0,2917.1,0.02056379]
[1765982761101,2.982372,2918.8,2917.0,0.62215963]
[1765982761281,6.22159626,2918.5,2916.1,0.57]
[1765982761588,20.55575532,2918.9,2916.3,6.22159626]
[1765982761589,11.777477,2918.3,2916.3,6.22159626]
[1765982761960,0.46438023,2918.2,2915.2,0.002]
[1765982762296,0.1847,2917.5,2916.5,6.22159626]
[1765982762497,3.305992,2917.8,2916.5,0.57]
[1765982762668,0.46438023,2917.5,2916.3,6.79159626]
[1765982762872,0.92428023,2917.5,2916.3,6.22159626]
[1765982763199,30.0,2916.9,2915.2,0.002]
[1765982763402,0.46438023,2916.4,2915.2,0.002]
[1765982763583,2.631877,2915.9,2915.2,0.002]
[1765982763776,0.57,2915.8,2915.2,0.002]
[1765982763998,0.92428023,2915.8,2915.2,0.002]
[1765982764202,0.70621183,2915.8,2915.2,0.002]
[1765982764424,0.4599,2915.3,2915.2,0.002]
[1765982764584,6.11334506,2915.3,2914.0,0.002]
[1765982764788,23.86891223,2915.2,2914.0,0.002]
[1765982764986,12.321738,2914.5,2914.0,0.002]
[1765982765194,0.4692,2914.3,2914.0,0.002]
[1765982765395,0.4692,2914.0,2912.8,0.002]
[1765982765719,1.64012992,2914.1,2911.0,3.80237569]
[1765982765720,0.1809,2912.9,2911.0,0.36715312]
[1765982765889,0.1809,2912.9,2910.0,0.11602635]
[1765982765890,0.4692,2910.1,2909.2,6.22159626]
[1765982766076,0.4692,2910.8,2909.3,0.62215963]
[1765982766274,0.03436323,2910.8,2909.6,0.4622]
[1765982766479,0.03436323,2910.8,2910.1,3.43630803]
[1765982766676,0.46438023,2911.3,2909.6,6.70436005]
[1765982766961,7.44154782,2911.4,2909.5,6.22159626]
[1765982766962,0.93358023,2911.1,2909.5,6.22159626]
[1765982767087,13.944935,2910.8,2909.1,6.22159626]
[1765982767276,6.22159626,2910.1,2907.2,0.4622]
[1765982767481,6.22159626,2910.1,2903.4,1.67272066]
[1765982767482,0.05,2903.5,2903.4,1.67272066]
[1765982767678,0.05,2903.5,2898.9,0.1818]
[1765982767679,0.0499786,2903.4,2898.9,0.1818]
[1765982767901,0.81070243,2903.3,2900.4,0.00999999]
[1765982768122,6.22159626,2903.0,2899.3,0.4622]
[1765982768279,6.22159626,2903.0,2898.5,0.0345006]
[1765982768280,0.46438023,2902.6,2898.5,0.02439286]
[1765982768483,6.68597649,2902.4,2898.4,0.003]
[1765982768803,6.68597649,2902.4,2899.3,6.22159626]
[1765982768804,30.0,2902.2,2899.3,6.22159626]
[1765982769004,5.805741,2902.0,2899.1,0.61]
[1765982769178,0.04307522,2901.9,2899.2,0.4981]
[1765982769378,2.918344,2901.8,2899.6,0.02413169]
[1765982769675,0.0499786,2901.0,2899.9,2.36021]
[1765982769912,0.04309007,2900.9,2900.1,0.4981]
[1765982770303,0.04309156,2900.8,2900.4,6.22159626]
[1765982770481,0.04309156,2900.8,2899.1,0.1915]
[1765982770482,0.0499786,2901.0,2900.0,0.4981]
[1765982770699,0.0499786,2901.0,2898.5,0.02413169]
[1765982770700,7.92686403,2900.9,2899.3,6.22159626]
[1765982770918,3.44537282,2902.5,2898.7,0.4981]
[1765982770919,6.89061154,2902.5,2898.7,0.4981]
[1765982771221,0.55587965,2902.4,2900.2,10.112088]
[1765982771381,2.715169,2901.0,2898.9,0.4981]
[1765982771576,0.44429093,2902.3,2900.5,6.22159626]
[1765982771817,6.89061154,2902.5,2901.9,6.22159626]
[1765982772115,21.968875,2903.0,2901.1,0.628]
[1765982772319,0.05,2904.3,2900.5,0.4981]
[1765982772479,3.44311821,2904.4,2902.4,6.22159626]
[1765982772819,21.968875,2903.2,2902.0,3.44578197]
[1765982773118,21.968875,2903.1,2902.2,6.22159626]
[1765982773300,0.4742,2903.1,2901.6,6.22159626]
[1765982773500,0.46438023,2902.7,2900.5,0.4981]
[1765982773701,21.968875,2902.6,2900.8,0.4981]
[1765982773901,21.968875,2902.5,2901.4,6.22159626]
[1765982774108,27.985153,2902.8,2901.6,6.22159626]
[1765982774301,21.968875,2903.7,2902.2,6.22159626]
[1765982774523,22.443075,2902.9,2899.0,3.44944049]
[1765982774718,0.1001,2903.8,2900.6,9.66915593]
[1765982774719,0.46138023,2902.6,2900.6,9.66915593]
[1765982774887,21.968875,2902.6,2900.7,0.4981]
[1765982775083,25.813409,2902.2,2901.1,6.22159626]
[1765982775284,25.222609,2902.7,2900.6,0.4981]
[1765982775530,22.443075,2901.0,2898.7,0.4981]
[1765982775736,27.526372,2901.7,2898.8,6.22159626]
[1765982775737,0.4742,2900.8,2898.8,6.22159626]
[1765982776038,0.4742,2900.4,2898.9,0.67196963]
[1765982776183,0.632,2900.9,2898.9,0.67196963]
[1765982776184,0.4742,2900.2,2898.9,0.67196963]
[1765982776383,0.4742,2900.2,2898.1,6.71969626]
[1765982776384,0.4742,2899.8,2898.1,6.22159626]
[1765982776618,30.838653,2899.5,2898.2,6.22159626]
[1765982776801,0.632,2900.2,2897.9,0.4981]
[1765982776802,21.968875,2899.9,2899.0,6.22159626]
[1765982777001,0.5877,2900.6,2897.8,6.22159626]
[1765982777002,0.46438023,2899.4,2897.8,6.22159626]
[1765982777288,0.4742,2898.8,2897.4,6.22159626]
[1765982777504,0.4742,2899.2,2897.9,6.22159626]
[1765982777703,21.968875,2899.0,2898.3,6.22159626]
[1765982777889,21.968875,2899.5,2897.9,1.12025963]
[1765982778262,21.968875,2899.8,2898.5,6.90009426]
[1765982778429,0.4742,2900.7,2899.2,6.22159626]
[1765982778430,21.968875,2900.1,2899.2,6.22159626]
[1765982778629,21.968875,2900.9,2899.3,0.634]
[1765982778922,21.968875,2901.0,2900.4,6.22159626]
[1765982779123,21.968875,2901.0,2900.2,6.22159626]
[1765982779307,21.968875,2901.0,2897.4,2.440064]
[1765982779308,0.01010053,2900.9,2900.7,0.4981]
[1765982779514,0.01010053,2900.9,2900.8,6.71969626]
[1765982779830,0.4742,2905.0,2902.5,6.22159626]
[1765982779991,0.4742,2905.0,2902.1,0.1915]
[1765982779992,7.35888158,2905.0,2903.7,6.22159626]
[1765982780191,6.88160202,2906.3,2904.9,6.22159626]
[1765982780392,6.88160202,2906.3,2904.4,0.635]
[1765982780592,6.88160202,2906.3,2905.2,6.22159626]
[1765982780810,6.88160202,2906.3,2904.9,6.22159626]
[1765982781006,6.88160202,2906.3,2904.8,6.22159626]
[1765982781223,3.44080101,2906.3,2904.8,6.22159626]
[1765982781428,0.1135,2907.0,2905.6,6.22159626]
[1765982781590,0.1135,2907.0,2904.8,0.636]
[1765982781591,6.88018162,2906.9,2905.8,6.22159626]
[1765982781791,0.4742,2907.4,2906.0,6.22159626]
[1765982782073,0.00999999,2909.8,2906.0,6.22159626]
[1765982782074,3.43878954,2908.0,2906.5,6.22159626]
[1765982782229,3.43878954,2908.0,2906.0,0.62215963]
[1765982782230,3.43878954,2908.0,2906.9,6.22159626]
[1765982782428,2.865027,2907.9,2906.6,6.22159626]
[1765982782624,3.861432,2907.6,2906.6,6.22159626]
[1765982782831,0.4742,2907.5,2904.8,0.4981]
[1765982783031,13.524866,2907.2,2905.3,6.22159626]
[1765982783345,0.4742,2906.4,2904.1,0.6896]
[1765982783654,0.46438023,2906.9,2905.6,6.22159626]
[1765982783655,0.1135,2906.7,2905.6,6.22159626]
[1765982783828,6.345075,2907.3,2905.6,6.22159626]
[1765982784027,0.4742,2907.1,2904.9,0.4981]
[1765982784350,0.46438023,2906.7,2904.3,2.0299]
[1765982784526,0.46438023,2906.1,2904.2,6.22159626]
[1765982784731,3.44115622,2906.0,2905.0,6.22159626]
[1765982784931,11.630875,2906.5,2905.0,6.22159626]
[1765982785168,6.88041832,2906.8,2905.9,6.22159626]
[1765982785463,2.775593,2906.7,2905.2,0.4981]
[1765982785663,13.239276,2906.4,2904.6,0.0241396]
[1765982785873,3.541338,2906.2,2904.6,0.0241396]
[1765982786168,0.46438023,2906.3,2904.8,6.22159626]
[1765982786460,16.419724,2906.7,2905.1,6.22159626]
[1765982786670,6.88051739,2906.8,2904.8,0.4981]
[1765982786671,11.535616,2906.5,2904.8,0.4981]
[1765982786828,8.386249,2906.5,2904.8,0.4981]
[1765982787029,8.386249,2906.5,2904.3,4.54343263]
[1765982787030,10.126754,2906.2,2904.3,0.636]
[1765982787232,0.4742,2906.2,2904.3,0.636]
[1765982787467,0.4742,2906.2,2904.4,6.22159626]
[1765982787782,0.4742,2906.2,2904.8,6.22159626]
[1765982788061,3.04712,2906.9,2904.5,0.0241396]
[1765982788226,0.93858023,2906.1,2903.9,0.4981]
[1765982788430,6.584605,2905.8,2903.9,0.4981]
[1765982788735,6.88302302,2905.7,2904.3,6.22159626]
[1765982788926,6.88302302,2905.7,2903.6,0.0241396]
[1765982788927,15.738109,2905.5,2903.6,0.0241396]
[1765982789129,15.300225,2904.9,2902.6,6.22159626]
[1765982789332,15.300225,2904.9,2901.6,0.03446374]
[1765982789333,0.4742,2904.1,2901.9,6.22159626]
[1765982789597,0.46438023,2903.7,2902.3,6.22159626]
[1765982789778,10.13909,2903.7,2902.0,0.4981]
[1765982790110,6.308967,2903.5,2902.7,6.22159626]
[1765982790416,6.308967,2903.5,2900.9,0.002]
[1765982790417,0.1001,2903.0,2901.4,0.03446611]
[1765982790630,0.1001,2903.0,2900.9,0.002]
[1765982790631,0.4742,2902.7,2900.9,0.002]
[1765982790775,0.1135,2901.7,2900.9,0.002]
[1765982791115,0.637,2901.6,2900.9,0.002]
[1765982791324,0.46438023,2901.6,2900.9,0.002]
[1765982791613,0.637,2901.5,2900.9,0.002]
[1765982791918,0.4742,2900.9,2899.7,0.002]
[1765982792096,0.4742,2902.2,2899.7,0.002]
[1765982792300,0.46438023,2902.0,2900.5,6.22159626]
[1765982792474,0.46438023,2902.2,2900.5,0.4981]
[1765982792675,3.44534863,2902.5,2901.2,6.22159626]
[1765982792676,0.46438023,2902.5,2901.2,6.22159626]
[1765982792931,3.44518707,2902.6,2901.5,0.0172396]
[1765982793221,3.44518707,2902.6,2900.2,0.4981]
[1765982793427,6.89037414,2902.6,2901.5,6.22159626]
[1765982793631,4.218647,2902.5,2901.2,0.4981]
[1765982793800,6.89037414,2902.6,2901.3,6.22159626]
[1765982794206,0.64,2902.9,2901.3,6.71969626]
[1765982794425,3.44423779,2903.4,2902.5,6.22159626]
[1765982794626,3.44423779,2903.4,2902.2,0.0172396]
[1765982794627,10.33271337,2903.4,2902.2,0.0172396]
[1765982794927,10.33271337,2903.4,2902.1,6.70409626]
[1765982794928,3.942783,2903.7,2902.1,10.14986535]
[1765982795124,0.53108446,2903.7,2902.1,13.59564599]
[1765982795332,0.83932008,2904.4,2902.9,6.22159626]
[1765982795506,6.5320528,2904.8,2903.7,6.22159626]
[1765982795842,3.085725,2904.7,2903.5,6.22159626]
[1765982796043,7.565979,2904.5,2902.6,6.22159626]
[1765982796190,6.188109,2904.2,2902.6,6.22159626]
[1765982796400,1.33881018,2904.1,2902.6,6.22159626]
[1765982796592,0.83932008,2904.6,2903.0,6.22159626]
[1765982796821,15.255617,2904.2,2902.2,6.86159626]
[1765982796996,0.46438023,2903.8,2902.6,6.22159626]
[1765982797208,0.46438023,2903.8,2902.4,6.22159626]
[1765982797209,0.83932008,2903.6,2902.4,6.22159626]
[1765982797403,0.83932008,2903.4,2902.1,6.70409626]
[1765982797708,0.83932008,2903.2,2902.2,3.44556235]
[1765982797909,0.83932008,2903.3,2902.0,0.4825]
[1765982798116,0.83932008,2903.2,2902.0,0.4825]
[1765982798320,0.83932008,2903.2,2902.3,6.22159626]
[1765982798610,0.70133425,2903.3,2901.8,6.22159626]
[1765982798611,1.54369962,2903.3,2901.8,6.22159626]
[1765982798915,6.88823832,2903.5,2902.2,6.70409626]
[1765982799117,0.70443533,2903.4,2902.3,6.22159626]
[1765982799316,1.54375541,2903.4,2902.3,6.22159626]
[1765982799542,1.54375541,2903.4,2902.4,0.02066685]
[1765982799543,0.70443533,2903.4,2902.4,0.02066685]
[1765982799720,0.83932008,2904.1,2903.1,6.22159626]
[1765982799906,0.83932008,2903.8,2902.0,0.4825]
[1765982800096,6.80172008,2903.4,2902.0,0.4825]
[1765982800298,0.83932008,2903.0,2901.6,6.22159626]
[1765982800638,1.5442462,2902.9,2902.7,6.22159626]
[1765982800865,0.83932008,2903.5,2902.0,0.4825]
[1765982801172,0.83932008,2903.5,2901.4,0.02066685]
[1765982801173,0.83932008,2902.4,2901.4,0.02066685]
[1765982801461,0.83932008,2902.2,2901.4,0.02066685]
[1765982801620,1.54438023,2902.1,2901.4,0.02066685]
[1765982801954,1.54438023,2902.0,2901.4,0.02066685]
[1765982802258,0.83932008,2902.4,2901.4,0.02066685]
[1765982802457,0.46438023,2902.1,2900.9,0.002]
[1765982802617,3.526118,2901.4,2900.9,0.002]
[1765982802822,0.83932008,2902.0,2901.2,6.22159626]
[1765982803042,0.70486751,2902.1,2901.2,6.22159626]
[1765982803244,7.59647343,2902.1,2900.9,0.002]
[1765982803418,5.42740608,2901.9,2900.9,0.002]
[1765982803614,0.70486751,2901.8,2900.9,0.002]
[1765982803826,6.89160592,2902.1,2901.2,6.22159626]
[1765982803827,0.70486751,2901.9,2901.2,6.22159626]
[1765982804040,4.28465136,2902.5,2901.6,6.22159626]
[1765982804257,4.92806054,2903.0,2902.0,6.22159626]
[1765982804455,0.83932008,2902.8,2901.5,0.4825]
[1765982804632,0.70541467,2902.8,2901.8,6.22159626]
[1765982804828,3.4449497,2902.8,2901.8,9.66771426]
[1765982805019,0.70541467,2902.7,2901.8,6.22159626]
[1765982805222,0.70541467,2902.7,2901.5,3.92894654]
[1765982805553,0.70541467,2902.7,2901.7,9.66781555]
[1765982805766,0.70541467,2902.7,2901.8,3.44610125]
[1765982805941,0.705563,2902.7,2901.6,6.22159626]
[1765982806143,0.705563,2902.8,2902.4,6.22159626]
[1765982806450,3.44388194,2903.7,2902.8,0.4825]
[1765982806637,0.70645682,2903.6,2903.1,6.22159626]
[1765982806826,3.44364475,2903.9,2903.1,13.11077947]
[1765982807023,0.70759151,2903.8,2903.1,6.22159626]
[1765982807218,0.70659151,2903.7,2903.1,9.66616917]
[1765982807452,0.70659151,2903.6,2903.1,9.66618997]
[1765982807762,0.70659151,2903.7,2903.5,6.22159626]
[1765982807924,0.001,2903.8,2903.6,0.4825]
[1765982808256,0.0002,2903.8,2903.7,0.6653]
[1765982808634,0.0002,2903.8,2903.7,0.4825]
[1765982808857,0.0002,2903.8,2903.7,6.22159626]
[1765982809024,0.0002,2903.8,2903.7,10.1479782]
[1765982809224,0.0002,2903.8,2903.7,9.6654782]
[1765982809471,0.0002,2903.8,2903.7,9.8482782]
[1765982809820,0.0002,2903.8,2903.7,11.17922837]
[1765982810060,0.0002,2903.8,2903.7,9.8482782]
[1765982810228,0.001,2905.0,2904.5,6.22159626]
[1765982810555,0.70960938,2904.9,2904.3,0.4825]
[1765982810763,0.70960938,2904.9,2904.2,0.642]
[1765982810764,3.44269631,2904.7,2904.2,0.642]
[1765982810959,3.44269631,2904.7,2902.0,1.23491899]
[1765982810960,1.54891889,2904.6,2903.0,0.4825]
[1765982811133,0.88659885,2904.0,2903.0,0.4825]
[1765982811456,0.88659885,2903.6,2903.5,6.22159626]
[1765982811643,0.70959881,2903.6,2903.5,6.22159626]